fUST/lending_fUST_20250924
["ID","MTS","AMOUNT","RATE_DAILY","PERIOD"]
[387264288,1758667862895,-490.1,0.00020821,2]
[387264289,1758667862905,-480.0,0.00020821,2]
[387264290,1758667862915,-480.0,0.00020821,2]
[387264291,1758667862926,-2801.14,0.00020821,2]
[387264292,1758667862937,-480.0,0.00020821,2]
[387264293,1758667862946,-480.0,0.00020821,2]
[387264294,1758667862957,-480.0,0.00020821,2]
[387264295,1758667862967,-480.0,0.00020821,2]
[387264296,1758667862976,-334.51089232,0.00020821,2]
[387264297,1758667862986,-480.0,0.00020821,2]
[387264298,1758667862996,-745.13,0.00020821,2]
[387264299,1758667863005,-480.0,0.00020821,2]
[387264300,1758667863015,-480.0,0.00020821,2]
[387264301,1758667863024,-480.0,0.00020821,2]
[387264302,1758667863113,-497.91640254,0.00020821,2]
[387264303,1758667863123,-480.0,0.00020821,2]
[387264304,1758667863133,-480.0,0.00020821,2]
[387264305,1758667863143,-480.0,0.00020821,2]
[387264306,1758667863153,-499.39,0.00020821,2]
[387264307,1758667863163,-480.0,0.00020821,2]
[387264308,1758667863172,-596.31968219,0.00020821,2]
[387264309,1758667863182,-480.0,0.00020821,2]
[387264310,1758667863191,-680.34565206,0.00020839,2]
[387264311,1758667863200,-260.0,0.00020852,2]
[387264312,1758667863210,-862.65,0.00020872,2]
[387264313,1758667863219,-940.05518082,0.00020972,2]
[387264314,1758667863229,-360.0,0.00020995,2]
[387264315,1758667863239,-215.58,0.00020995,2]
[387264316,1758667863249,-695.85458677,0.00021068,2]
[387264317,1758667863258,-731.65900691,0.00021068,2]
[387264318,1758667863267,-1500.0,0.00021068,2]
[387264319,1758667863277,-480.0,0.00021095,2]
[387264320,1758667863286,-480.0,0.00021095,2]
[387264321,1758667863295,-510.82,0.00021095,2]
[387264322,1758667863304,-480.0,0.00021095,2]
[387264323,1758667863313,-480.0,0.00021095,2]
[387264324,1758667863323,-642.56,0.00021095,2]
[387264325,1758667863333,-480.0,0.00021095,2]
[387264326,1758667863344,-480.0,0.00021095,2]
[387264327,1758667863354,-480.0,0.00021095,2]
[387264328,1758667863364,-480.0,0.00021095,2]
[387264329,1758667863373,-480.0,0.00021095,2]
[387264330,1758667863383,-480.0,0.00021095,2]
[387264331,1758667863393,-480.0,0.00021095,2]
[387264332,1758667863402,-480.0,0.00021095,2]
[387264333,1758667863412,-480.0,0.00021095,2]
[387264334,1758667863422,-480.0,0.00021095,2]
[387264335,1758667863432,-480.0,0.00021095,2]
[387264336,1758667863442,-480.0,0.00021095,2]
[387264337,1758667863451,-519.68480042,0.00021095,2]
[387264338,1758667863460,-480.0,0.00021095,2]
[387264339,1758667863470,-480.0,0.00021095,2]
[387264340,1758667863480,-480.0,0.00021095,2]
[387264341,1758667863489,-480.0,0.00021095,2]
[387264342,1758667863499,-480.0,0.00021095,2]
[387264343,1758667863509,-480.0,0.00021095,2]
[387264344,1758667863518,-931.98,0.00021095,2]
[387264345,1758667863528,-480.0,0.00021095,2]
[387264346,1758667863537,-480.0,0.00021095,2]
[387264347,1758667863547,-480.0,0.00021095,2]
[387264348,1758667863556,-480.0,0.00021095,2]
[387264349,1758667863566,-480.0,0.00021095,2]
[387264350,1758667863576,-480.0,0.00021095,2]
[387264351,1758667863586,-480.0,0.00021095,2]
[387264352,1758667863596,-480.0,0.00021095,2]
[387264353,1758667863605,-480.0,0.00021095,2]
[387264354,1758667863615,-480.0,0.00021095,2]
[387264355,1758667863624,-480.0,0.00021095,2]
[387264356,1758667863634,-480.0,0.00021095,2]
[387264357,1758667863643,-480.0,0.00021095,2]
[387264358,1758667863653,-480.0,0.00021095,2]
[387264359,1758667863662,-480.0,0.00021095,2]
[387264360,1758667863673,-480.0,0.00021095,2]
[387264361,1758667863682,-480.0,0.00021095,2]
[387264362,1758667863692,-480.0,0.00021095,2]
[387264363,1758667863702,-480.0,0.00021095,2]
[387264364,1758667863712,-480.0,0.00021095,2]
[387264365,1758667863722,-480.0,0.00021095,2]
[387264366,1758667863732,-480.0,0.00021095,2]
[387264367,1758667863741,-254.13355061,0.00021095,2]
[387264368,1758667863752,-480.0,0.00021095,2]
[387264369,1758667863762,-480.0,0.00021095,2]
[387264370,1758667863771,-480.0,0.00021095,2]
[387264371,1758667863781,-480.0,0.00021095,2]
[387264372,1758667863791,-480.0,0.00021095,2]
[387264373,1758667863800,-480.0,0.00021095,2]
[387264374,1758667863809,-480.0,0.00021095,2]
[387264375,1758667863819,-480.0,0.00021095,2]
[387264376,1758667863830,-480.0,0.00021095,2]
[387264377,1758667863839,-480.0,0.00021095,2]
[387264378,1758667863850,-480.0,0.00021095,2]
[387264379,1758667863860,-480.0,0.00021095,2]
[387264380,1758667863869,-864.0,0.00021095,2]
[387264381,1758667863879,-480.0,0.00021095,2]
[387264382,1758667863888,-480.0,0.00021095,2]
[387264383,1758667863898,-480.0,0.00021095,2]
[387264384,1758667863908,-480.0,0.00021095,2]
[387264385,1758667863919,-480.0,0.00021095,2]
[387264386,1758667863928,-609.28,0.00021095,2]
[387264387,1758667863938,-480.0,0.00021095,2]
[387264388,1758667863948,-490.1,0.00021095,2]
[387264389,1758667863958,-480.0,0.00021095,2]
[387264390,1758667863967,-2801.14,0.00021095,2]
[387264391,1758667863978,-480.0,0.00021095,2]
[387264392,1758667863988,-480.0,0.00021095,2]
[387264393,1758667863998,-480.0,0.00021095,2]
[387264394,1758667864007,-745.13,0.00021095,2]
[387264395,1758667864016,-493.52,0.00021095,2]
[387264396,1758667864026,-447.53,0.00021095,2]
[387264397,1758667864035,-209.07,0.00021095,2]
[387264398,1758667864045,-480.0,0.00021095,2]
[387264399,1758667864055,-499.39,0.00021095,2]
[387264400,1758667864064,-2000.0,0.00021116,2]
[387264401,1758667864073,-500.0,0.00021116,2]
[387264402,1758667864083,-505.8389514,0.00021121,2]
[387264403,1758667864093,-1000.0,0.00021121,2]
[387264404,1758667864102,-257.36639487,0.00021121,2]
[387264405,1758667864111,-500.0,0.00021121,2]
[387264406,1758667864120,-1000.0,0.00021121,2]
[387264407,1758667864130,-1000.0,0.00021121,2]
[387264408,1758667864140,-1000.0,0.00021121,2]
[387264409,1758667864149,-233.58652103,0.00021225,2]
[387264410,1758667864158,-160.0,0.0002126,2]
[387264411,1758667864168,-480.0,0.00021369,2]
[387264412,1758667864177,-480.0,0.00021369,2]
[387264413,1758667864186,-642.56,0.00021369,2]
[387264414,1758667864196,-480.0,0.00021369,2]
[387264415,1758667864205,-480.0,0.00021369,2]
[387264416,1758667864214,-480.0,0.00021369,2]
[387264417,1758667864223,-480.0,0.00021369,2]
[387264418,1758667864233,-480.0,0.00021369,2]
[387264419,1758667864243,-480.0,0.00021369,2]
[387264420,1758667864252,-480.0,0.00021369,2]
[387264421,1758667864261,-211.68,0.00021369,2]
[387264422,1758667864270,-480.0,0.00021369,2]
[387264423,1758667864280,-480.0,0.00021369,2]
[387264424,1758667864289,-931.98,0.00021369,2]
[387264425,1758667864299,-480.0,0.00021369,2]
[387264426,1758667864308,-480.0,0.00021369,2]
[387264427,1758667864320,-480.0,0.00021369,2]
[387264428,1758667864331,-480.0,0.00021369,2]
[387264429,1758667864341,-480.0,0.00021369,2]
[387264430,1758667864350,-480.0,0.00021369,2]
[387264431,1758667864360,-480.0,0.00021369,2]
[387264432,1758667864370,-480.0,0.00021369,2]
[387264433,1758667864380,-480.0,0.00021369,2]
[387264434,1758667864389,-480.0,0.00021369,2]
[387264435,1758667864400,-480.0,0.00021369,2]
[387264436,1758667864410,-480.0,0.00021369,2]
[387264437,1758667864420,-480.0,0.00021369,2]
[387264438,1758667864429,-480.0,0.00021369,2]
[387264439,1758667864439,-480.0,0.00021369,2]
[387264440,1758667864449,-480.0,0.00021369,2]
[387264441,1758667864458,-480.0,0.00021369,2]
[387264442,1758667864468,-480.0,0.00021369,2]
[387264443,1758667864477,-480.0,0.00021369,2]
[387264444,1758667864486,-313.20064696,0.00021369,2]
[387264445,1758667864496,-480.0,0.00021369,2]
[387264446,1758667864506,-480.0,0.00021369,2]
[387264447,1758667864515,-480.0,0.00021369,2]
[387264448,1758667864524,-480.0,0.00021369,2]
[387264449,1758667864534,-480.0,0.00021369,2]
[387264450,1758667864543,-480.0,0.00021369,2]
[387264451,1758667864553,-864.0,0.00021369,2]
[387264452,1758667864562,-480.0,0.00021369,2]
[387264453,1758667864570,-480.0,0.00021369,2]
[387264454,1758667864580,-480.0,0.00021369,2]
[387264455,1758667864589,-480.0,0.00021369,2]
[387264456,1758667864598,-480.0,0.00021369,2]
[387264457,1758667864607,-490.1,0.00021369,2]
[387264458,1758667864617,-480.0,0.00021369,2]
[387264459,1758667864626,-2801.14,0.00021369,2]
[387264460,1758667864635,-480.0,0.00021369,2]
[387264461,1758667864645,-480.0,0.00021369,2]
[387264462,1758667864655,-480.0,0.00021369,2]
[387264463,1758667864664,-745.13,0.00021369,2]
[387264464,1758667864674,-380.0,0.00021369,2]
[387264465,1758667864683,-499.39,0.00021369,2]
[387264466,1758667864693,-2000.0,0.00021616,2]
[387264467,1758667864702,-309.94,0.00021643,2]
[387264468,1758667864711,-415.5,0.00021643,2]
[387264469,1758667864721,-642.56,0.00021643,2]
[387264470,1758667864730,-480.0,0.00021643,2]
[387264471,1758667864740,-480.0,0.00021643,2]
[387264472,1758667864750,-480.0,0.00021643,2]
[387264473,1758667864759,-480.0,0.00021643,2]
[387264474,1758667864769,-480.0,0.00021643,2]
[387264475,1758667864778,-480.0,0.00021643,2]
[387264476,1758667864787,-931.98,0.00021643,2]
[387264477,1758667864797,-480.0,0.00021643,2]
[387264478,1758667864806,-480.0,0.00021643,2]
[387264479,1758667864815,-480.0,0.00021643,2]
[387264480,1758667864824,-480.0,0.00021643,2]
[387264481,1758667864903,-480.0,0.00021643,2]
[387264482,1758667864912,-480.0,0.00021643,2]
[387264483,1758667864921,-480.0,0.00021643,2]
[387264484,1758667864931,-480.0,0.00021643,2]
[387264485,1758667864941,-480.0,0.00021643,2]
[387264486,1758667864950,-480.0,0.00021643,2]
[387264487,1758667864959,-480.0,0.00021643,2]
[387264488,1758667864969,-480.0,0.00021643,2]
[387264489,1758667864978,-480.0,0.00021643,2]
[387264490,1758667864987,-480.0,0.00021643,2]
[387264491,1758667864997,-480.0,0.00021643,2]
[387264492,1758667865007,-480.0,0.00021643,2]
[387264493,1758667865017,-480.0,0.00021643,2]
[387264494,1758667865026,-480.0,0.00021643,2]
[387264495,1758667865036,-493.29,0.00021643,2]
[387264496,1758667865045,-864.0,0.00021643,2]
[387264497,1758667865055,-480.0,0.00021643,2]
[387264498,1758667865065,-241.52,0.00021643,2]
[387264499,1758667865074,-330.81341975,0.00021643,2]
[387264500,1758667865084,-534.05,0.00021643,2]
[387264501,1758667865094,-185.87,0.00021643,2]
[387264502,1758667865104,-490.1,0.00021643,2]
[387264503,1758667865113,-480.0,0.00021643,2]
[387264504,1758667865122,-2801.14,0.00021643,2]
[387264505,1758667865132,-480.0,0.00021643,2]
[387264506,1758667865142,-479.1,0.00021643,2]
[387264507,1758667865151,-480.0,0.00021643,2]
[387264508,1758667865160,-745.13,0.00021643,2]
[387264509,1758667865170,-499.39,0.00021643,2]
[387264510,1758667865180,-1500.0,0.00021668,2]
[387264511,1758667865189,-1019.25989304,0.00021668,2]
[387264512,1758667865198,-1500.0,0.00021668,2]
[387264513,1758667865207,-500.0,0.00021668,2]
[387264514,1758667865217,-642.56,0.00021917,2]
[387264515,1758667865226,-418.48,0.00021917,2]
[387264516,1758667865236,-931.98,0.00021917,2]
[387264517,1758667865245,-480.0,0.00021917,2]
[387264518,1758667865255,-533.23,0.00021917,2]
[387264519,1758667865265,-480.0,0.00021917,2]
[387264520,1758667865274,-480.0,0.00021917,2]
[387264521,1758667865284,-480.0,0.00021917,2]
[387264522,1758667865293,-480.0,0.00021917,2]
[387264523,1758667865302,-480.0,0.00021917,2]
[387264524,1758667865312,-508.98958211,0.00021917,2]
[387264525,1758667865321,-480.0,0.00021917,2]
[387264526,1758667865330,-480.0,0.00021917,2]
[387264527,1758667865341,-480.0,0.00021917,2]
[387264528,1758667865351,-480.0,0.00021917,2]
[387264529,1758667865361,-480.0,0.00021917,2]
[387264530,1758667865370,-480.0,0.00021917,2]
[387264531,1758667865379,-266.49,0.00021917,2]
[387264532,1758667865389,-480.0,0.00021917,2]
[387264533,1758667865398,-480.0,0.00021917,2]
[387264534,1758667865407,-864.0,0.00021917,2]
[387264535,1758667865415,-480.0,0.00021917,2]
[387264536,1758667865424,-490.1,0.00021917,2]
[387264537,1758667865434,-480.0,0.00021917,2]
[387264538,1758667865443,-2801.14,0.00021917,2]
[387264539,1758667865453,-480.0,0.00021917,2]
[387264540,1758667865462,-480.0,0.00021917,2]
[387264541,1758667865471,-745.13,0.00021917,2]
[387264542,1758667865480,-499.39,0.00021917,2]
[387264543,1758667865489,-155.14,0.00022,2]
[387264544,1758667865499,-940.05518082,0.00022044,2]
[387264545,1758667865508,-500.0,0.00022164,2]
[387264546,1758667865517,-642.56,0.00022191,2]
[387264547,1758667865527,-931.98,0.00022191,2]
[387264548,1758667865535,-480.0,0.00022191,2]
[387264549,1758667865544,-480.0,0.00022191,2]
[387264550,1758667865553,-480.0,0.00022191,2]
[387264551,1758667865561,-480.0,0.00022191,2]
[387264552,1758667865570,-480.0,0.00022191,2]
[387264553,1758667865580,-180.18,0.00022191,2]
[387264554,1758667865589,-207.86,0.00022191,2]
[387264555,1758667865600,-480.0,0.00022191,2]
[387264556,1758667865610,-480.0,0.00022191,2]
[387264557,1758667865619,-480.0,0.00022191,2]
[387264558,1758667865629,-864.0,0.00022191,2]
[387264559,1758667865639,-480.0,0.00022191,2]
[387264560,1758667865649,-490.1,0.00022191,2]
[387264561,1758667865658,-480.0,0.00022191,2]
[387264562,1758667865667,-2801.14,0.00022191,2]
[387264563,1758667865676,-480.0,0.00022191,2]
[387264564,1758667865686,-480.0,0.00022191,2]
[387264565,1758667865695,-745.13,0.00022191,2]
[387264566,1758667865705,-499.39,0.00022191,2]
[387264567,1758667865715,-1500.0,0.00022216,2]
[387264568,1758667865724,-2000.0,0.00022216,2]
[387264569,1758667865734,-2861.88,0.00022257,2]
[387264570,1758667865744,-642.56,0.00022465,2]
[387264571,1758667865754,-151.0,0.00022465,7]
[387264572,1758667865763,-931.98,0.00022465,2]
[387264573,1758667865773,-480.0,0.00022465,2]
[387264574,1758667865783,-480.0,0.00022465,2]
[387264575,1758667865792,-480.0,0.00022465,2]
[387264576,1758667865801,-480.0,0.00022465,2]
[387264577,1758667865810,-480.0,0.00022465,2]
[387264578,1758667865819,-480.0,0.00022465,2]
[387264579,1758667865829,-157.32,0.00022465,2]
[387264580,1758667865839,-480.0,0.00022465,2]
[387264581,1758667865848,-864.0,0.00022465,2]
[387264582,1758667865857,-344.56,0.00022465,2]
[387264583,1758667865867,-490.1,0.00022465,2]
[387264584,1758667865876,-480.0,0.00022465,2]
[387264585,1758667865885,-2801.14,0.00022465,2]
[387264586,1758667865894,-480.0,0.00022465,2]
[387264587,1758667865904,-480.0,0.00022465,2]
[387264588,1758667865913,-745.13,0.00022465,2]
[387264589,1758667865923,-499.39,0.00022465,2]
[387264590,1758667865934,-410.0,0.0002252,2]
[387264591,1758667865943,-642.56,0.00022739,2]
[387264592,1758667865953,-931.98,0.00022739,2]
[387264593,1758667865963,-480.0,0.00022739,2]
[387264594,1758667865972,-480.0,0.00022739,2]
[387264595,1758667865982,-480.0,0.00022739,2]
[387264596,1758667865991,-480.0,0.00022739,2]
[387264597,1758667866001,-602.71,0.00022739,2]
[387264598,1758667866010,-480.0,0.00022739,2]
[387264599,1758667866020,-864.0,0.00022739,2]
[387264600,1758667866030,-490.1,0.00022739,2]
[387264601,1758667866039,-480.0,0.00022739,2]
[387264602,1758667866048,-480.0,0.00022739,2]
[387264603,1758667866057,-2801.14,0.00022739,2]
[387264604,1758667866066,-480.0,0.00022739,2]
[387264605,1758667866076,-745.13,0.00022739,2]
[387264606,1758667866085,-499.39,0.00022739,2]
[387264607,1758667866095,-155.14,0.00023,2]
[387264608,1758667866104,-642.56,0.00023013,2]
[387264609,1758667866115,-931.98,0.00023013,2]
[387264610,1758667866124,-480.0,0.00023013,2]
[387264611,1758667866134,-480.0,0.00023013,2]
[387264612,1758667866143,-424.27,0.00023013,2]
[387264613,1758667866154,-480.0,0.00023013,2]
[387264614,1758667866163,-480.0,0.00023013,2]
[387264615,1758667866172,-864.0,0.00023013,2]
[387264616,1758667866182,-490.1,0.00023013,2]
[387264617,1758667866191,-480.0,0.00023013,2]
[387264618,1758667866201,-480.0,0.00023013,2]
[387264619,1758667866211,-2801.14,0.00023013,2]
[387264620,1758667866220,-480.0,0.00023013,2]
[387264621,1758667866230,-745.13,0.00023013,2]
[387264622,1758667866239,-499.39,0.00023013,2]
[387264623,1758667866249,-940.05518082,0.00023116,2]
[387264624,1758667866259,-642.56,0.00023287,2]
[387264625,1758667866268,-931.98,0.00023287,2]
[387264626,1758667866277,-480.0,0.00023287,2]
[387264627,1758667866288,-480.0,0.00023287,2]
[387264628,1758667866298,-480.0,0.00023287,2]
[387264629,1758667866308,-480.0,0.00023287,2]
[387264630,1758667866318,-864.0,0.00023287,2]
[387264631,1758667866332,-490.1,0.00023287,2]
[387264632,1758667866341,-480.0,0.00023287,2]
[387264633,1758667866351,-480.0,0.00023287,2]
[387264634,1758667866361,-2801.14,0.00023287,2]
[387264635,1758667866371,-480.0,0.00023287,2]
[387264636,1758667866380,-745.13,0.00023287,2]
[387264637,1758667866389,-499.39,0.00023287,2]
[387264638,1758667866399,-1746.08047613,0.00023348,2]
[387264639,1758667866409,-642.56,0.00023561,2]
[387264640,1758667866419,-931.98,0.00023561,2]
[387264641,1758667866428,-480.0,0.00023561,2]
[387264642,1758667866437,-480.0,0.00023561,2]
[387264643,1758667866447,-480.0,0.00023561,2]
[387264644,1758667866456,-443.94,0.00023561,2]
[387264645,1758667866533,-864.0,0.00023561,2]
[387264646,1758667866544,-490.1,0.00023561,2]
[387264647,1758667866555,-480.0,0.00023561,2]
[387264648,1758667866564,-480.0,0.00023561,2]
[387264649,1758667866574,-2801.14,0.00023561,2]
[387264650,1758667866584,-480.0,0.00023561,2]
[387264651,1758667866593,-745.13,0.00023561,2]
[387264652,1758667866603,-499.39,0.00023561,2]
[387264653,1758667866612,-642.56,0.00023835,2]
[387264654,1758667866622,-931.98,0.00023835,2]
[387264655,1758667866631,-577.68,0.00023835,2]
[387264656,1758667866640,-569.58,0.00023835,2]
[387264657,1758667866649,-480.0,0.00023835,2]
[387264658,1758667866659,-864.0,0.00023835,2]
[387264659,1758667866667,-490.1,0.00023835,2]
[387264660,1758667866677,-480.0,0.00023835,2]
[387264661,1758667866686,-480.0,0.00023835,2]
[387264662,1758667866695,-2801.14,0.00023835,2]
[387264663,1758667866704,-480.0,0.00023835,2]
[387264664,1758667866713,-745.13,0.00023835,2]
[387264665,1758667866723,-499.39,0.00023835,2]
[387264666,1758667866732,-209.055,0.00023919,5]
[387264667,1758667866741,-155.14,0.00024,2]
[387264668,1758667866751,-642.56,0.00024109,2]
[387264669,1758667866760,-931.98,0.00024109,2]
[387264670,1758667866770,-624.0,0.00024109,2]
[387264671,1758667866780,-864.0,0.00024109,2]
[387264672,1758667866789,-490.1,0.00024109,2]
[387264673,1758667866798,-480.0,0.00024109,2]
[387264674,1758667866809,-501.84,0.00024109,2]
[387264675,1758667866820,-2801.14,0.00024109,2]
[387264676,1758667866830,-480.0,0.00024109,2]
[387264677,1758667866842,-745.13,0.00024109,2]
[387264678,1758667866854,-4292.82,0.00024111,2]
[387264679,1758667866864,-940.05518082,0.00024187,2]
[387264680,1758667866873,-642.56,0.00024383,2]
[387264681,1758667866882,-931.98,0.00024383,2]
[387264682,1758667866893,-864.0,0.00024383,2]
[387264683,1758667866902,-490.1,0.00024383,2]
[387264684,1758667866912,-480.0,0.00024383,2]
[387264685,1758667866922,-2801.14,0.00024383,2]
[387264686,1758667866931,-353.77,0.00024383,2]
[387264687,1758667866941,-745.13,0.00024383,2]
[387264688,1758667866953,-642.56,0.00024657,2]
[387264689,1758667866962,-931.98,0.00024657,2]
[387264690,1758667866972,-864.0,0.00024657,2]
[387264691,1758667866982,-490.1,0.00024657,2]
[387264692,1758667866991,-480.0,0.00024657,2]
[387264693,1758667867002,-2801.14,0.00024657,2]
[387264694,1758667867011,-745.13,0.00024657,2]
[387264695,1758667867021,-408.55875621,0.0002475,2]
[387264696,1758667867031,-151.0,0.000248,7]
[387264697,1758667867040,-150.0,0.00024873,2]
[387264698,1758667867050,-155.14,0.00024879,2]
[387264699,1758667867060,-480.0,0.00024899,2]
[387264700,1758667867069,-151.0,0.00024899,7]
[387264701,1758667867078,-3833.95,0.00024899,2]
[387264702,1758667867088,-480.0,0.00024899,2]
[387264703,1758667867098,-480.0,0.00024899,2]
[387264704,1758667867107,-151.0,0.000249,7]
[387264705,1758667867117,-170.650204,0.000249,7]
[387264706,1758667867126,-151.0,0.000249,7]
[387264707,1758667867135,-536193.538101,0.000249,2]
[387264708,1758667867144,-153.028058,0.000249,7]
[387264709,1758667867154,-151.0,0.000249,7]
[387264710,1758667867163,-298.134611,0.000249,7]
[387264711,1758667867173,-642.56,0.00024931,2]
[387264712,1758667867182,-931.98,0.00024931,2]
[387264713,1758667867192,-864.0,0.00024931,2]
[387264714,1758667867202,-490.1,0.00024931,2]
[387264715,1758667867211,-480.0,0.00024931,2]
[387264716,1758667867220,-2801.14,0.00024931,2]
[387264717,1758667867230,-745.13,0.00024931,2]
[387264718,1758667867239,-1016.02517823,0.00025,10]
[387264719,1758667867249,-445.11305262,0.00025022,2]
[387264720,1758667867258,-480.0,0.00025173,2]
[387264721,1758667867268,-3833.95,0.00025173,2]
[387264722,1758667867277,-480.0,0.00025173,2]
[387264723,1758667867287,-480.0,0.00025173,2]
[387264724,1758667867296,-2814.16490391,0.000252,7]
[387264725,1758667867305,-642.56,0.00025205,2]
[387264726,1758667867314,-931.98,0.00025205,2]
[387264727,1758667867324,-864.0,0.00025205,2]
[387264728,1758667867338,-490.1,0.00025205,2]
[387264729,1758667867348,-511.89,0.00025205,2]
[387264730,1758667867357,-2801.14,0.00025205,2]
[387264731,1758667867366,-745.13,0.00025205,2]
[387264732,1758667867375,-940.05518082,0.00025259,3]
[387264733,1758667867384,-360.17023948,0.00025421,2]
[387264734,1758667867393,-480.0,0.00025447,2]
[387264735,1758667867403,-3833.95,0.00025447,2]
[387264736,1758667867413,-480.0,0.00025447,2]
[387264737,1758667867423,-480.0,0.00025447,2]
[387264738,1758667867432,-642.57,0.00025479,2]
[387264739,1758667867441,-932.12,0.00025479,2]
[387264740,1758667867450,-864.12,0.00025479,2]
[387264741,1758667867459,-490.26,0.00025479,2]
[387264742,1758667867469,-2801.22,0.00025479,2]
[387264743,1758667867478,-745.26,0.00025479,2]
[387264744,1758667867489,-410.0,0.0002552,2]
[387264745,1758667867499,-480.0,0.00025721,2]
[387264746,1758667867508,-3833.95,0.00025721,2]
[387264747,1758667867517,-480.0,0.00025721,2]
[387264748,1758667867526,-480.0,0.00025721,2]
[387264749,1758667867536,-155.14,0.00025839,7]
[387264750,1758667867545,-173.981,0.00025878,2]
[387264751,1758667867555,-5723.76,0.00025966,2]
[387264752,1758667867565,-480.0,0.00025995,2]
[387264753,1758667867574,-3833.95,0.00025995,2]
[387264754,1758667867584,-480.0,0.00025995,2]
[387264755,1758667867592,-480.0,0.00025995,2]
[387264756,1758667867601,-179.67658215,0.00026013,2]
[387264757,1758667867611,-191.76924527,0.00026027,2]
[387264758,1758667867620,-480.0,0.00026269,2]
[387264759,1758667867629,-3833.95,0.00026269,2]
[387264760,1758667867638,-480.0,0.00026269,2]
[387264761,1758667867648,-480.0,0.00026269,2]
[387264762,1758667867657,-940.05518082,0.00026331,5]
[387264763,1758667867666,-480.0,0.00026543,2]
[387264764,1758667867675,-3833.95,0.00026543,2]
[387264765,1758667867684,-480.0,0.00026543,2]
[387264766,1758667867693,-480.0,0.00026543,2]
[387264767,1758667867702,-155.14,0.00026798,7]
[387264768,1758667867711,-480.0,0.00026817,2]
[387264769,1758667867721,-3833.95,0.00026817,2]
[387264770,1758667867731,-480.0,0.00026817,2]
[387264771,1758667867741,-480.0,0.00026817,2]
[387264772,1758667867752,-3833.95,0.00027091,2]
[387264773,1758667867761,-480.0,0.00027091,2]
[387264774,1758667867770,-480.0,0.00027091,2]
[387264775,1758667867780,-1746.08047613,0.00027344,2]
[387264776,1758667867789,-3833.95,0.00027365,2]
[387264777,1758667867799,-328.8,0.00027365,2]
[387264778,1758667867808,-480.0,0.00027365,2]
[387264779,1758667867817,-151.0,0.00027397,7]
[387264780,1758667867826,-150.0,0.00027397,5]
[387264781,1758667867835,-664.34132904,0.000274,120]
[387264782,1758667867846,-940.05518082,0.00027403,7]
[387264783,1758667867855,-104508.23018638,0.00027444,2]
[387264784,1758667867929,-13773.70150369,0.00027444,2]
[387264785,1758667868158,-480.0,0.00019178,2]
[387264786,1758667868168,-480.0,0.00019178,2]
[387264787,1758667868177,-197.26268837,0.00019452,2]